[Event "32nd NATO Chess Championship"]
[Site "Tartu, Estonia"]
[Date "2022.06.30"]
[Round "5.2"]
[White "Sycz, Dariusz"]
[Black "Papasimakopoulos, Alexandros"]
[Result "0-1"]
[TimeControl "90 min + 30 sec increment from move one"]
[BlackTitle "CM"]
[WhiteFideId "1138650"]
[BlackFideId "4244125"]
[WhiteElo "2189"]
[BlackElo "2259"]

1. d4 {[%clk 01:30:56]} {[%emt 00:00:03]} Nf6 {[%clk 01:30:53]} {[%emt
00:00:08]} 2. Nf3 {[%clk 01:31:18]} {[%emt 00:00:08]} b6 {[%clk 01:31:17]}
{[%emt 00:00:05]} 3. c4 {[%clk 01:29:01]} {[%emt 00:02:48]} e6 {[%clk
01:31:14]} {[%emt 00:00:34]} 4. e3 {[%clk 01:29:05]} {[%emt 00:00:26]} Bb7
{[%clk 01:31:28]} {[%emt 00:00:16]} 5. Bd3 {[%clk 01:29:28]} {[%emt 00:00:06]}
Be7 {[%clk 01:31:46]} {[%emt 00:00:12]} 6. O-O {[%clk 01:29:43]} {[%emt
00:00:15]} c5 {[%clk 01:31:55]} {[%emt 00:00:22]} 7. Nbd2 {[%clk 01:28:06]}
{[%emt 00:02:07]} O-O {[%clk 01:32:03]} {[%emt 00:00:22]} 8. b3 {[%clk
01:27:26]} {[%emt 00:01:10]} cxd4 {[%clk 01:32:27]} {[%emt 00:00:07]} 9. exd4
{[%clk 01:27:32]} {[%emt 00:00:23]} d5 {[%clk 01:32:52]} {[%emt 00:00:05]} 10.
Bb2 {[%clk 01:25:30]} {[%emt 00:02:33]} Nc6 {[%clk 01:32:59]} {[%emt 00:00:22]}
11. Qe2 {[%clk 01:20:12]} {[%emt 00:05:46]} Nb4 {[%clk 01:31:47]} {[%emt
00:01:44]} 12. Bb1 {[%clk 01:20:17]} {[%emt 00:00:25]} dxc4 {[%clk 01:32:11]}
{[%emt 00:00:06]} 13. bxc4 {[%clk 01:20:02]} {[%emt 00:00:45]} Rc8 {[%clk
01:32:16]} {[%emt 00:00:25]} 14. a3 {[%clk 01:11:44]} {[%emt 00:08:48]} Nc6
{[%clk 01:32:39]} {[%emt 00:00:07]} 15. Bd3 {[%clk 01:05:23]} {[%emt 00:06:50]}
Re8 {[%clk 01:32:55]} {[%emt 00:00:14]} 16. Rfd1 {[%clk 01:02:08]} {[%emt
00:03:46]} Bf8 {[%clk 01:33:04]} {[%emt 00:00:21]} 17. Qe3 {[%clk 00:59:01]}
{[%emt 00:03:36]} g6 {[%clk 01:31:46]} {[%emt 00:01:48]} 18. Qf4 {[%clk
00:52:30]} {[%emt 00:07:01]} Bg7 {[%clk 01:30:01]} {[%emt 00:02:16]} 19. Ng5
{[%clk 00:45:16]} {[%emt 00:07:43]} Qc7 {[%clk 01:25:39]} {[%emt 00:04:52]} 20.
Qh4 {[%clk 00:43:58]} {[%emt 00:01:48]} h6 {[%clk 01:18:50]} {[%emt 00:07:19]}
21. Nge4 {[%clk 00:42:11]} {[%emt 00:02:18]} Nh5 {[%clk 01:13:55]} {[%emt
00:05:25]} 22. Nf3 {[%clk 00:39:27]} {[%emt 00:03:13]} f5 {[%clk 01:12:33]}
{[%emt 00:01:53]} 23. Ng3 {[%clk 00:36:32]} {[%emt 00:03:25]} Nf4 {[%clk
01:11:17]} {[%emt 00:01:46]} 24. Bc1 {[%clk 00:26:27]} {[%emt 00:10:35]} Nxg2
{[%clk 01:07:58]} {[%emt 00:03:49]} 25. Qh3 {[%clk 00:23:29]} {[%emt 00:03:28]}
Nf4 {[%clk 01:08:20]} {[%emt 00:00:08]} 26. Qh4 {[%clk 00:23:25]} {[%emt
00:00:34]} g5 {[%clk 00:59:19]} {[%emt 00:09:31]} 27. Bxf4 {[%clk 00:23:40]}
{[%emt 00:00:15]} Qxf4 {[%clk 00:59:42]} {[%emt 00:00:07]} 28. Qxf4 {[%clk
00:23:17]} {[%emt 00:00:53]} gxf4 {[%clk 01:00:06]} {[%emt 00:00:07]} 29. Ne2
{[%clk 00:19:33]} {[%emt 00:04:13]} Na5 {[%clk 01:00:02]} {[%emt 00:00:34]} 30.
Ne5 {[%clk 00:14:22]} {[%emt 00:05:40]} Nb3 {[%clk 00:58:04]} {[%emt 00:02:28]}
31. Rab1 {[%clk 00:14:36]} {[%emt 00:00:16]} Nxd4 {[%clk 00:58:08]} {[%emt
00:00:27]} 32. Nxd4 {[%clk 00:14:58]} {[%emt 00:00:08]} Bxe5 {[%clk 00:58:33]}
{[%emt 00:00:05]} 33. Nb5 {[%clk 00:14:51]} {[%emt 00:00:37]} a6 {[%clk
00:56:44]} {[%emt 00:02:19]} 34. Re1 {[%clk 00:14:55]} {[%emt 00:00:26]} Rc5
{[%clk 00:57:03]} {[%emt 00:00:10]} 35. Na7 {[%clk 00:14:27]} {[%emt 00:00:59]}
Bc7 {[%clk 00:57:09]} {[%emt 00:00:24]} 36. Rbd1 {[%clk 00:11:52]} {[%emt
00:03:04]} Bb8 {[%clk 00:52:11]} {[%emt 00:05:28]} 37. Bb1 {[%clk 00:11:39]}
{[%emt 00:00:44]} Kf7 {[%clk 00:51:31]} {[%emt 00:01:10]} 38. Bxf5 {[%clk
00:11:10]} {[%emt 00:01:00]} Rxf5 {[%clk 00:51:40]} {[%emt 00:00:20]} 0-1

[Event "32nd NATO Chess Championship"]
[Site "Tartu, Estonia"]
[Date "2022.06.30"]
[Round "5.3"]
[White "Kedzierski, Slawomir"]
[Black "Stein, Robert"]
[Result "0-1"]
[TimeControl "90 min + 30 sec increment from move one"]
[BlackTitle "FM"]
[WhiteFideId "1134949"]
[BlackFideId "12921084"]
[WhiteElo "2133"]
[BlackElo "2365"]

1. d4 {[%clk 01:30:35]} {[%emt 00:00:16]} Nf6 {[%clk 01:30:05]} {[%emt
00:01:03]} 2. Nf3 {[%clk 01:30:14]} {[%emt 00:00:53]} c5 {[%clk 01:29:44]}
{[%emt 00:00:51]} 3. d5 {[%clk 01:30:14]} {[%emt 00:00:31]} g6 {[%clk
01:29:50]} {[%emt 00:00:23]} 4. Nc3 {[%clk 01:29:44]} {[%emt 00:01:00]} Bg7
{[%clk 01:28:25]} {[%emt 00:01:56]} 5. e4 {[%clk 01:29:50]} {[%emt 00:00:24]}
O-O {[%clk 01:26:58]} {[%emt 00:01:57]} 6. Be2 {[%clk 01:29:37]} {[%emt
00:00:42]} d6 {[%clk 01:19:08]} {[%emt 00:08:21]} 7. O-O {[%clk 01:29:24]}
{[%emt 00:00:43]} Bg4 {[%clk 01:12:02]} {[%emt 00:07:35]} 8. Bf4 {[%clk
01:21:47]} {[%emt 00:08:07]} Qb6 {[%clk 01:00:15]} {[%emt 00:12:18]} 9. Rb1
{[%clk 01:19:34]} {[%emt 00:02:41]} Re8 {[%clk 00:52:47]} {[%emt 00:07:59]} 10.
h3 {[%clk 01:14:34]} {[%emt 00:05:29]} Bxf3 {[%clk 00:52:19]} {[%emt 00:00:59]}
11. Bxf3 {[%clk 01:14:58]} {[%emt 00:00:06]} e6 {[%clk 00:48:12]} {[%emt
00:04:37]} 12. Re1 {[%clk 00:57:41]} {[%emt 00:17:47]} exd5 {[%clk 00:43:17]}
{[%emt 00:05:26]} 13. Nxd5 {[%clk 00:54:16]} {[%emt 00:03:55]} Nxd5 {[%clk
00:43:19]} {[%emt 00:00:27]} 14. Qxd5 {[%clk 00:54:10]} {[%emt 00:00:36]} Be5
{[%clk 00:39:45]} {[%emt 00:04:04]} 15. Be3 {[%clk 00:53:45]} {[%emt 00:00:55]}
Nc6 {[%clk 00:39:07]} {[%emt 00:01:09]} 16. c3 {[%clk 00:53:14]} {[%emt
00:01:00]} Qc7 {[%clk 00:34:43]} {[%emt 00:04:54]} 17. Be2 {[%clk 00:52:42]}
{[%emt 00:01:01]} Bg7 {[%clk 00:27:16]} {[%emt 00:07:58]} 18. Rbd1 {[%clk
00:51:50]} {[%emt 00:01:22]} Rad8 {[%clk 00:26:09]} {[%emt 00:01:38]} 19. Bc4
{[%clk 00:47:10]} {[%emt 00:05:09]} a6 {[%clk 00:20:21]} {[%emt 00:06:19]} 20.
Bg5 {[%clk 00:46:10]} {[%emt 00:01:29]} Rd7 {[%clk 00:19:39]} {[%emt 00:01:13]}
21. Qd2 {[%clk 00:45:53]} {[%emt 00:00:46]} b5 {[%clk 00:18:12]} {[%emt
00:01:58]} 22. Bd5 {[%clk 00:46:14]} {[%emt 00:00:09]} Ne7 {[%clk 00:18:27]}
{[%emt 00:00:14]} 23. Bxe7 {[%clk 00:33:06]} {[%emt 00:13:38]} Rdxe7 {[%clk
00:18:00]} {[%emt 00:00:57]} 24. Qd3 {[%clk 00:25:49]} {[%emt 00:07:47]} Kh8
{[%clk 00:16:10]} {[%emt 00:02:21]} 25. Re3 {[%clk 00:24:44]} {[%emt 00:01:34]}
c4 {[%clk 00:14:41]} {[%emt 00:02:00]} 26. Qc2 {[%clk 00:23:43]} {[%emt
00:01:29]} Qc5 {[%clk 00:08:51]} {[%emt 00:06:21]} 27. Rf3 {[%clk 00:18:19]}
{[%emt 00:05:53]} f5 {[%clk 00:07:52]} {[%emt 00:01:30]} 28. exf5 {[%clk
00:16:22]} {[%emt 00:02:28]} Re1+ {[%clk 00:08:17]} {[%emt 00:00:04]} 29. Kh2
{[%clk 00:16:25]} {[%emt 00:00:24]} Rxd1 {[%clk 00:03:37]} {[%emt 00:05:13]} 30.
Qxd1 {[%clk 00:16:43]} {[%emt 00:00:12]} Re5 {[%clk 00:04:04]} {[%emt
00:00:03]} 31. Bb7 {[%clk 00:08:26]} {[%emt 00:08:48]} gxf5 {[%clk 00:04:09]}
{[%emt 00:00:25]} 32. Qd2 {[%clk 00:04:29]} {[%emt 00:04:26]} d5 {[%clk
00:02:48]} {[%emt 00:01:52]} 33. Qg5 {[%clk 00:02:42]} {[%emt 00:02:16]} Qc7
{[%clk 00:02:42]} {[%emt 00:00:36]} 34. g3 {[%clk 00:02:27]} {[%emt 00:00:45]}
h6 {[%clk 00:01:58]} {[%emt 00:01:15]} 35. Qg6 {[%clk 00:02:38]} {[%emt
00:00:19]} Qxb7 {[%clk 00:02:18]} {[%emt 00:00:08]} 36. Rxf5 {[%clk 00:02:59]}
{[%emt 00:00:10]} Rxf5 {[%clk 00:02:42]} {[%emt 00:00:07]} 37. Qxf5 {[%clk
00:03:25]} {[%emt 00:00:04]} Qc6 {[%clk 00:03:05]} {[%emt 00:00:05]} 38. Kg1
{[%clk 00:03:27]} {[%emt 00:00:30]} a5 {[%clk 00:03:20]} {[%emt 00:00:14]} 39.
g4 {[%clk 00:03:23]} {[%emt 00:00:35]} b4 {[%clk 00:03:08]} {[%emt 00:00:42]}
40. h4 {[%clk 00:03:38]} {[%emt 00:00:14]} bxc3 {[%clk 00:03:22]} {[%emt
00:00:17]} 41. bxc3 {[%clk 00:04:05]} {[%emt 00:00:03]} d4 {[%clk 00:02:38]}
{[%emt 00:01:13]} 42. g5 {[%clk 00:04:10]} {[%emt 00:00:25]} dxc3 {[%clk
00:02:22]} {[%emt 00:00:46]} 43. g6 {[%clk 00:03:03]} {[%emt 00:01:37]} Qe8
{[%clk 00:02:17]} {[%emt 00:00:27]} 44. h5 {[%clk 00:03:12]} {[%emt 00:00:29]}
Qd8 {[%clk 00:02:11]} {[%emt 00:00:33]} 45. f4 {[%clk 00:02:31]} {[%emt
00:01:14]} a4 {[%clk 00:01:40]} {[%emt 00:01:00]} 46. Kg2 {[%clk 00:02:25]}
{[%emt 00:00:37]} Qd2+ {[%clk 00:00:49]} {[%emt 00:01:21]} 47. Kh1 {[%clk
00:02:35]} {[%emt 00:00:19]} Qd8 {[%clk 00:00:55]} {[%emt 00:00:25]} 48. Kg2
{[%clk 00:03:00]} {[%emt 00:00:05]} Qa8+ {[%clk 00:01:03]} {[%emt 00:00:21]} 49.
Kg3 {[%clk 00:03:09]} {[%emt 00:00:20]} a3 {[%clk 00:01:25]} {[%emt 00:00:09]}
50. Kh2 {[%clk 00:03:10]} {[%emt 00:00:30]} Qd8 {[%clk 00:01:33]} {[%emt
00:00:23]} 51. Kg2 {[%clk 00:03:29]} {[%emt 00:00:10]} Bf6 {[%clk 00:01:38]}
{[%emt 00:00:25]} 52. Kh1 {[%clk 00:02:58]} {[%emt 00:01:00]} Kg7 {[%clk
00:01:08]} {[%emt 00:00:59]} 53. Kg2 {[%clk 00:02:48]} {[%emt 00:00:41]} Qc7
{[%clk 00:01:32]} {[%emt 00:00:05]} 54. Kf3 {[%clk 00:02:59]} {[%emt 00:00:21]}
Qe7 {[%clk 00:01:17]} {[%emt 00:00:44]} 55. Kf2 {[%clk 00:01:17]} {[%emt
00:02:12]} Bd4+ {[%clk 00:01:23]} {[%emt 00:00:23]} 56. Kf1 {[%clk 00:01:41]}
{[%emt 00:00:07]} c2 {[%clk 00:00:57]} {[%emt 00:00:56]} 57. Qxc2 {[%clk
00:01:46]} {[%emt 00:00:26]} Qe3 {[%clk 00:01:02]} {[%emt 00:00:23]} 58. Kg2
{[%clk 00:01:59]} {[%emt 00:00:19]} c3 {[%clk 00:00:54]} {[%emt 00:00:38]} 59.
Qf5 {[%clk 00:01:41]} {[%emt 00:00:48]} Qg1+ {[%clk 00:00:42]} {[%emt
00:00:41]} 60. Kf3 {[%clk 00:01:45]} {[%emt 00:00:27]} Qf1+ {[%clk 00:00:42]}
{[%emt 00:00:29]} 61. Kg3 {[%clk 00:01:45]} {[%emt 00:00:30]} Bf2+ {[%clk
00:00:46]} {[%emt 00:00:25]} 62. Kf3 {[%clk 00:01:58]} {[%emt 00:00:18]} Bg1+
{[%clk 00:01:10]} {[%emt 00:00:07]} 63. Kg3 {[%clk 00:01:25]} {[%emt 00:01:03]}
Qf2+ {[%clk 00:01:34]} {[%emt 00:00:05]} 64. Kh3 {[%clk 00:00:35]} {[%emt
00:01:21]} Qh2+ {[%clk 00:01:59]} {[%emt 00:00:04]} 0-1

[Event "32nd NATO Chess Championship"]
[Site "Tartu, Estonia"]
[Date "2022.06.30"]
[Round "5.4"]
[White "Valeinis, Janis"]
[Black "Pietruszewski, Marcin"]
[Result "1/2-1/2"]
[TimeControl "90 min + 30 sec increment from move one"]
[WhiteFideId "11601450"]
[BlackFideId "1170295"]
[WhiteElo "2176"]
[BlackElo "2195"]

1. Nf3 {[%clk 01:30:40]} {[%emt 00:00:18]} Nf6 {[%clk 01:30:26]} {[%emt
00:00:35]} 2. g3 {[%clk 01:30:46]} {[%emt 00:00:24]} c5 {[%clk 01:21:39]}
{[%emt 00:09:19]} 3. Bg2 {[%clk 01:30:25]} {[%emt 00:00:51]} Nc6 {[%clk
01:17:11]} {[%emt 00:04:58]} 4. O-O {[%clk 01:29:54]} {[%emt 00:01:01]} g6
{[%clk 01:14:45]} {[%emt 00:02:56]} 5. d3 {[%clk 01:26:07]} {[%emt 00:04:17]}
Bg7 {[%clk 01:14:41]} {[%emt 00:00:34]} 6. e4 {[%clk 01:24:45]} {[%emt
00:01:51]} d6 {[%clk 01:14:19]} {[%emt 00:00:53]} 7. h3 {[%clk 00:58:00]}
{[%emt 00:27:15]} O-O {[%clk 01:13:36]} {[%emt 00:01:13]} 8. Re1 {[%clk
00:57:29]} {[%emt 00:01:01]} e5 {[%clk 01:02:26]} {[%emt 00:11:40]} 9. Be3
{[%clk 00:54:39]} {[%emt 00:03:19]} b6 {[%clk 00:55:19]} {[%emt 00:07:38]} 10.
Qc1 {[%clk 00:50:04]} {[%emt 00:05:05]} Re8 {[%clk 00:53:16]} {[%emt 00:02:32]}
11. Bh6 {[%clk 00:49:41]} {[%emt 00:00:53]} Bh8 {[%clk 00:52:29]} {[%emt
00:01:18]} 12. Bg5 {[%clk 00:45:53]} {[%emt 00:04:17]} Be6 {[%clk 00:49:52]}
{[%emt 00:03:08]} 13. c4 {[%clk 00:39:34]} {[%emt 00:06:49]} Rb8 {[%clk
00:43:14]} {[%emt 00:07:08]} 14. Nc3 {[%clk 00:39:40]} {[%emt 00:00:23]} a6
{[%clk 00:43:32]} {[%emt 00:00:12]} 15. Nd5 {[%clk 00:38:59]} {[%emt 00:01:11]}
b5 {[%clk 00:42:57]} {[%emt 00:01:06]} 16. b3 {[%clk 00:39:03]} {[%emt
00:00:25]} Rb7 {[%clk 00:36:38]} {[%emt 00:06:50]} 17. Qd2 {[%clk 00:31:00]}
{[%emt 00:08:32]} Bg7 {[%clk 00:30:32]} {[%emt 00:06:36]} 18. Rab1 {[%clk
00:30:39]} {[%emt 00:00:51]} Nb8 {[%clk 00:24:22]} {[%emt 00:06:40]} 19. Nh2
{[%clk 00:22:55]} {[%emt 00:08:12]} Nc6 {[%clk 00:23:02]} {[%emt 00:01:52]} 20.
Nf3 {[%clk 00:21:55]} {[%emt 00:01:30]} Nb8 {[%clk 00:23:10]} {[%emt 00:00:22]}
21. Nh2 {[%clk 00:22:18]} {[%emt 00:00:06]} Nc6 {[%clk 00:21:40]} {[%emt
00:02:01]} 22. Nf3 {[%clk 00:21:23]} {[%emt 00:01:25]} Nb8 {[%clk 00:20:26]}
{[%emt 00:01:44]} 1/2-1/2

[Event "32nd NATO Chess Championship"]
[Site "Tartu, Estonia"]
[Date "2022.06.30"]
[Round "5.5"]
[White "Cichy, Kamil"]
[Black "Duren, Andrew"]
[Result "1-0"]
[TimeControl "90 min + 30 sec increment from move one"]
[WhiteFideId "1177257"]
[BlackFideId "2019663"]
[WhiteElo "2179"]
[BlackElo "1997"]

1. e4 {[%emt 00:18:49]} c5 {[%emt 00:00:07]} 2. b3 {[%emt 00:00:14]} Nf6 {[%emt
00:00:37]} 3. e5 {[%emt 00:00:37]} Nd5 {[%emt 00:00:06]} 4. Bb2 {[%emt
00:00:12]} g6 {[%emt 00:00:17]} 5. Nc3 {[%emt 00:00:29]} Nxc3 {[%emt 00:00:42]}
6. Bxc3 {[%emt 00:00:06]} Bg7 {[%emt 00:00:08]} 7. h4 {[%emt 00:00:16]} h5
{[%emt 00:02:10]} 8. e6 {[%emt 00:02:52]} Bxc3 {[%emt 00:00:58]} 9. exf7+
{[%emt 00:00:21]} Kxf7 {[%emt 00:00:23]} 10. dxc3 {[%emt 00:00:08]} Kg7 {[%emt
00:04:38]} 11. Rh3 {[%emt 00:09:26]} Nc6 {[%emt 00:06:13]} 12. Rg3 {[%emt
00:07:45]} d6 {[%emt 00:07:16]} 13. Bd3 {[%emt 00:09:44]} Ne5 {[%emt 00:00:52]}
14. Qd2 {[%emt 00:01:59]} Rf8 {[%emt 00:09:11]} 15. Rg5 {[%emt 00:27:35]} Rf6
{[%emt 00:18:33]} 16. O-O-O {[%emt 00:03:56]} Qf8 {[%emt 00:02:59]} 17. Nf3
{[%emt 00:03:52]} Nxd3+ {[%emt 00:12:21]} 18. Qxd3 {[%emt 00:00:33]} Bg4 {[%emt
00:00:50]} 19. Re1 {[%emt 00:03:04]} Bxf3 {[%emt 00:03:13]} 20. gxf3 {[%emt
00:00:05]} Qf7 {[%emt 00:02:34]} 21. Reg1 {[%emt 00:00:37]} Rf8 {[%emt
00:03:55]} 22. f4 {[%emt 00:06:01]} Kh6 {[%emt 00:05:36]} 23. Qe3 {[%emt
00:07:15]} Qe6 {[%emt 00:07:13]} 24. Re5 {[%emt 00:02:29]} 1-0

[Event "32nd NATO Chess Championship"]
[Site "Tartu, Estonia"]
[Date "2022.06.30"]
[Round "5.6"]
[White "Nill, Oliver"]
[Black "Tustanowski, Mateusz"]
[Result "0-1"]
[TimeControl "90 min + 30 sec increment from move one"]
[WhiteFideId "4652630"]
[BlackFideId "1169866"]
[WhiteElo "2166"]
[BlackElo "2036"]

1. c4 {[%emt 00:18:48]} e5 {[%emt 00:00:18]} 2. Nc3 {[%emt 00:00:14]} Nf6
{[%emt 00:00:17]} 3. g3 {[%emt 00:00:47]} Bb4 {[%emt 00:02:32]} 4. Bg2 {[%emt
00:02:02]} Nc6 {[%emt 00:04:16]} 5. Nd5 {[%emt 00:05:13]} a5 {[%emt 00:08:29]}
6. e3 {[%emt 00:12:01]} d6 {[%emt 00:03:10]} 7. Ne2 {[%emt 00:09:02]} Bf5
{[%emt 00:23:42]} 8. a3 {[%emt 00:06:16]} Bc5 {[%emt 00:00:54]} 9. d3 {[%emt
00:08:09]} O-O {[%emt 00:12:09]} 10. O-O {[%emt 00:01:05]} Rb8 {[%emt
00:14:01]} 11. Rb1 {[%emt 00:06:45]} Nxd5 {[%emt 00:02:35]} 12. cxd5 {[%emt
00:00:21]} Ne7 {[%emt 00:00:17]} 13. b4 {[%emt 00:02:46]} axb4 {[%emt
00:00:15]} 14. axb4 {[%emt 00:00:06]} Bb6 {[%emt 00:00:07]} 15. Nc3 {[%emt
00:13:04]} c6 {[%emt 00:02:23]} 16. dxc6 {[%emt 00:14:49]} bxc6 {[%emt
00:00:17]} 17. Ra1 {[%emt 00:02:47]} d5 {[%emt 00:14:38]} 18. d4 {[%emt
00:05:28]} Bc7 {[%emt 00:04:41]} 19. Ba3 {[%emt 00:01:13]} Bd6 {[%emt
00:00:08]} 20. dxe5 {[%emt 00:02:17]} Bxe5 {[%emt 00:00:57]} 21. Qd2 {[%emt
00:00:56]} Re8 {[%emt 00:01:56]} 22. Rac1 {[%emt 00:00:21]} Nc8 {[%emt
00:00:58]} 23. Ne2 {[%emt 00:02:14]} Nd6 {[%emt 00:00:24]} 24. Nd4 {[%emt
00:03:02]} Nc4 {[%emt 00:00:50]} 25. Qc3 {[%emt 00:00:24]} Bxd4 {[%emt
00:00:39]} 26. exd4 {[%emt 00:00:06]} Ra8 {[%emt 00:01:12]} 27. Bb2 {[%emt
00:01:09]} Re2 {[%emt 00:00:44]} 28. Ba1 {[%emt 00:00:04]} Ra3 {[%emt
00:00:17]} 29. Qxa3 {[%emt 00:01:14]} Nxa3 {[%emt 00:00:07]} 30. Rxc6 {[%emt
00:00:07]} Rc2 {[%emt 00:01:08]} 31. Ra6 {[%emt 00:00:07]} Nc4 {[%emt
00:00:48]} 32. Re1 {[%emt 00:00:14]} h6 {[%emt 00:00:18]} 33. b5 {[%emt
00:00:12]} Kh7 {[%emt 00:00:43]} 34. h4 {[%emt 00:00:10]} Bd3 {[%emt 00:00:36]}
35. Ra7 {[%emt 00:00:11]} Qf6 {[%emt 00:00:12]} 0-1

[Event "32nd NATO Chess Championship"]
[Site "Tartu, Estonia"]
[Date "2022.06.30"]
[Round "5.7"]
[White "Pavlidou, Ekaterini"]
[Black "Cheung, Jan"]
[Result "1-0"]
[TimeControl "90 min + 30 sec increment from move one"]
[WhiteTitle "WIM"]
[WhiteFideId "4213262"]
[BlackFideId "1010735"]
[WhiteElo "2146"]
[BlackElo "1964"]

1. d4 {[%clk 01:30:43]} {[%emt 00:00:16]} Nf6 {[%clk 01:30:52]} {[%emt
00:00:10]} 2. c4 {[%clk 01:30:54]} {[%emt 00:00:17]} e6 {[%clk 01:31:15]}
{[%emt 00:00:08]} 3. Nc3 {[%clk 01:31:11]} {[%emt 00:00:13]} Bb4 {[%clk
01:31:35]} {[%emt 00:00:11]} 4. e3 {[%clk 01:31:29]} {[%emt 00:00:11]} O-O
{[%clk 01:31:47]} {[%emt 00:00:18]} 5. Nf3 {[%clk 01:27:18]} {[%emt 00:04:43]}
d5 {[%clk 01:31:55]} {[%emt 00:00:22]} 6. Bd2 {[%clk 01:27:21]} {[%emt
00:00:25]} b6 {[%clk 01:30:52]} {[%emt 00:01:35]} 7. Rc1 {[%clk 01:26:20]}
{[%emt 00:01:31]} Bb7 {[%clk 01:25:49]} {[%emt 00:05:33]} 8. cxd5 {[%clk
01:26:30]} {[%emt 00:00:19]} exd5 {[%clk 01:26:06]} {[%emt 00:00:13]} 9. Bd3
{[%clk 01:26:50]} {[%emt 00:00:10]} a6 {[%clk 01:25:14]} {[%emt 00:01:23]} 10.
O-O {[%clk 01:25:18]} {[%emt 00:01:59]} Nbd7 {[%clk 01:24:52]} {[%emt
00:00:55]} 11. Ne5 {[%clk 01:25:38]} {[%emt 00:00:10]} Bd6 {[%clk 01:23:54]}
{[%emt 00:01:28]} 12. f4 {[%clk 01:25:56]} {[%emt 00:00:11]} Ne4 {[%clk
01:19:41]} {[%emt 00:04:44]} 13. Nxe4 {[%clk 01:20:10]} {[%emt 00:06:15]} dxe4
{[%clk 01:19:59]} {[%emt 00:00:12]} 14. Bc4 {[%clk 01:19:12]} {[%emt 00:01:28]}
Nf6 {[%clk 01:17:50]} {[%emt 00:02:40]} 15. Be1 {[%clk 01:11:08]} {[%emt
00:08:34]} Bd5 {[%clk 01:08:23]} {[%emt 00:09:57]} 16. Bh4 {[%clk 01:09:47]}
{[%emt 00:01:49]} Be7 {[%clk 01:07:46]} {[%emt 00:01:09]} 17. Bxd5 {[%clk
01:07:14]} {[%emt 00:03:04]} Qxd5 {[%clk 01:08:06]} {[%emt 00:00:10]} 18. Rxc7
{[%clk 01:06:50]} {[%emt 00:00:53]} Bd6 {[%clk 01:07:55]} {[%emt 00:00:41]} 19.
Rc3 {[%clk 01:00:12]} {[%emt 00:07:09]} Qxa2 {[%clk 01:01:23]} {[%emt
00:07:01]} 20. Bxf6 {[%clk 00:52:44]} {[%emt 00:07:57]} gxf6 {[%clk 01:01:36]}
{[%emt 00:00:18]} 21. Nd7 {[%clk 00:49:40]} {[%emt 00:03:34]} Rfd8 {[%clk
00:53:52]} {[%emt 00:08:15]} 22. Nxf6+ {[%clk 00:47:20]} {[%emt 00:02:49]} Kg7
{[%clk 00:53:45]} {[%emt 00:00:37]} 23. Nxe4 {[%clk 00:45:00]} {[%emt
00:02:49]} Qxb2 {[%clk 00:50:21]} {[%emt 00:03:54]} 24. Rb3 {[%clk 00:40:55]}
{[%emt 00:04:35]} Qa2 {[%clk 00:50:30]} {[%emt 00:00:22]} 25. Qg4+ {[%clk
00:37:41]} {[%emt 00:03:41]} Kh8 {[%clk 00:50:11]} {[%emt 00:00:51]} 26. Rxb6
{[%clk 00:37:14]} {[%emt 00:00:58]} Rg8 {[%clk 00:49:44]} {[%emt 00:00:57]} 27.
Ng5 {[%clk 00:28:46]} {[%emt 00:08:57]} 1-0